bitfinex/quotes_ETHUSD_20250930
["timestamp","ask_amount","ask_price","bid_price","bid_amount"]
[1759274802449,0.9138,4138.4,4138.3,24.67583]
[1759274802756,0.9138,4138.4,4138.3,21.691741]
[1759274803254,0.9138,4138.4,4138.3,22.17485]
[1759274803630,0.9138,4138.4,4138.3,22.023905]
[1759274804157,0.9138,4138.4,4138.3,22.171715]
[1759274804354,0.9138,4138.4,4138.3,22.157093]
[1759274805558,0.9138,4138.4,4138.3,22.155964]
[1759274805853,0.9138,4138.4,4138.3,21.696064]
[1759274806228,0.9138,4138.4,4138.3,22.155964]
[1759274807049,0.9138,4138.4,4138.3,20.593436]
[1759274807259,0.9138,4138.4,4138.3,18.077361]
[1759274807457,0.9138,4138.4,4138.3,19.130304]
[1759274807763,0.9138,4138.4,4138.3,18.956026]
[1759274808051,0.9138,4138.4,4138.3,20.520145]
[1759274808642,0.9138,4138.4,4138.3,20.754745]
[1759274808847,0.9138,4138.4,4138.0,0.002]
[1759274808848,0.792,4138.1,4138.0,0.002]
[1759274809159,0.792,4138.1,4138.0,5.293]
[1759274809362,3.87136799,4138.1,4138.0,5.293]
[1759274809670,3.87136799,4138.1,4138.0,2.781]
[1759274813156,3.20856799,4138.1,4138.0,2.781]
[1759274816882,3.20856799,4138.1,4138.0,0.002]
[1759274816883,3.87136799,4138.1,4138.0,0.002]
[1759274817086,3.87136799,4138.1,4138.0,5.294]
[1759274818905,3.32936799,4138.1,4138.0,5.294]
[1759274819259,3.76246799,4138.1,4138.0,0.002]
[1759274819495,3.99216799,4138.1,4138.0,5.293]
[1759274822388,3.99216799,4138.1,4138.0,0.002]
[1759274822607,3.99216799,4138.1,4138.0,5.293]
[1759274824902,3.99216799,4138.1,4138.0,0.002]
[1759274825077,3.99216799,4138.1,4138.0,5.293]
[1759274829513,3.33036799,4138.1,4138.0,5.293]
[1759274832050,3.33036799,4138.1,4138.0,5.292]
[1759274833818,3.33036799,4138.1,4138.0,5.9685]
[1759274834379,3.20956799,4138.1,4138.0,5.9685]
[1759274841728,3.20956799,4138.1,4138.0,5.5221]
[1759274844344,3.33036799,4138.1,4138.0,5.9646]
[1759274858172,3.33036799,4138.1,4138.0,5.5221]
[1759274868492,0.1218,4138.1,4138.0,20.99015]
[1759274868782,0.9138,4138.1,4138.0,35.9668]
[1759274870164,0.001,4138.1,4138.0,24.077018]
[1759274870561,0.001,4138.1,4138.0,5.9668]
[1759274870790,0.001,4138.1,4138.0,24.433255]
[1759274870956,0.001,4138.1,4138.0,24.503325]
[1759274871690,0.001,4138.1,4138.0,26.176571]
[1759274872488,0.001,4138.1,4138.0,27.121571]
[1759274873515,0.001,4138.1,4138.0,29.866567]
[1759274873811,0.001,4138.1,4138.0,29.472718]
[1759274874577,0.001,4138.1,4138.0,31.50657159]
[1759274874904,0.001,4138.1,4138.0,29.34247859]
[1759274875106,0.001,4138.1,4138.0,27.72473259]
[1759274875308,0.001,4138.1,4138.0,0.4333]
[1759274875518,0.001,4138.1,4138.0,12.784276]
[1759274875815,0.001,4138.1,4138.0,13.027776]
[1759274876113,0.001,4138.1,4138.0,13.459076]
[1759274876778,0.001,4138.1,4138.0,13.46148]
[1759274877779,0.001,4138.1,4138.0,16.165755]
[1759274878908,0.001,4138.1,4138.0,5.9618]
[1759274879403,0.001,4138.1,4138.0,16.503491]
[1759274879609,0.001,4138.1,4138.0,16.648602]
[1759274879806,0.001,4138.1,4138.0,15.939265]
[1759274880511,0.001,4138.1,4138.0,15.532716]
[1759274880874,0.001,4138.1,4138.0,5.9618]
[1759274881415,0.001,4138.1,4138.0,15.532716]
[1759274881602,0.001,4138.1,4138.0,16.673327]
[1759274882011,0.001,4138.1,4138.0,16.670923]
[1759274883001,0.001,4138.1,4138.0,16.668518]
[1759274884022,0.001,4138.1,4138.0,5.9618]
[1759274884388,0.001,4138.1,4138.0,17.183292]
[1759274885209,0.001,4138.1,4138.0,35.9618]
[1759274890930,0.001,4138.1,4138.0,38.37842638]
[1759274891119,0.001,4138.1,4138.0,39.24629597]
[1759274891434,0.001,4138.1,4138.0,9.24629597]
[1759274891802,0.001,4138.1,4138.0,39.24629597]
[1759274892631,0.001,4138.1,4138.0,38.37842638]
[1759274893337,0.001,4138.1,4138.0,40.77842638]
[1759274893509,0.001,4138.4,4138.0,40.77842638]
[1759274893510,0.001,4138.4,4138.3,2.41645119]
[1759274893833,0.001,4138.4,4138.3,38.88752465]
[1759274894135,0.001,4138.4,4138.3,38.25675119]
[1759274894647,0.001,4138.4,4138.3,8.25675119]
[1759274894830,0.001,4138.6,4138.5,2.41633442]
[1759274895136,0.001,4139.3,4138.7,2.41621765]
[1759274895444,0.001,4139.3,4138.8,37.58615927]
[1759274895599,0.001,4139.3,4138.8,38.25645927]
[1759274898444,0.001,4139.3,4138.8,39.55772269]
[1759274899316,0.001,4139.3,4139.0,2.41600039]
[1759274899537,0.001,4139.3,4139.2,4.81592578]
[1759274899742,0.001,4139.3,4139.2,34.81592578]
[1759274900053,0.001,4139.3,4139.2,35.49052578]
[1759274900422,0.001,4139.3,4139.2,36.35704324]
[1759274900754,0.001,4139.3,4139.2,36.4744548]
[1759274901161,0.001,4139.3,4139.2,36.5952548]
[1759274901450,0.001,4139.3,4139.2,35.72873734]
[1759274902313,0.001,4139.3,4139.2,36.59474602]
[1759274904245,0.001,4139.8,4139.4,2.41580905]
[1759274904428,0.001,4139.8,4139.4,35.20796714]
[1759274904636,0.001,4139.8,4139.4,35.85840905]
[1759274904946,0.001,4139.8,4139.4,38.25840905]
[1759274905245,0.001,4139.8,4139.4,39.12441773]
[1759274905752,0.001,4139.8,4139.7,2.41563398]
[1759274905914,0.001,4139.8,4139.7,5.18363398]
[1759274906114,0.001,4139.8,4139.7,38.37903398]
[1759274907447,0.001,4139.8,4139.7,37.70443398]
[1759274907627,0.001,4139.8,4139.7,35.2888]
[1759274908027,0.001,4139.8,4139.7,37.70443398]
[1759274908834,0.001,4139.8,4139.7,38.37903398]
[1759274909729,0.001,4139.8,4139.7,38.49983398]
[1759274910152,0.001,4140.2,4140.1,2.41540059]
[1759274910339,0.001,4140.2,4140.1,35.30320059]
[1759274910540,0.001,4140.2,4140.1,35.97780059]
[1759274910931,0.001,4140.2,4140.1,8.37780059]
[1759274911427,0.001,4140.2,4140.1,38.37780059]
[1759274912028,0.001,4140.2,4140.1,39.05860059]
[1759274912361,0.8016,4140.9,4140.1,39.05860059]
[1759274912362,0.8016,4140.9,4140.2,2.4]
[1759274912660,0.8016,4140.9,4140.4,2.41522558]
[1759274912859,0.8016,4140.9,4140.5,28.828937]
[1759274913043,2.41441558,4141.8,4140.8,2.41497321]
[1759274913044,0.1208,4141.2,4140.8,2.41497321]
[1759274913248,0.1208,4141.2,4140.9,35.278]
[1759274913449,0.1208,4141.4,4141.0,30.0]
[1759274913760,0.1208,4141.4,4141.1,2.767]
[1759274913938,0.1208,4141.4,4141.2,30.0]
[1759274914139,0.1208,4141.4,4141.3,2.767]
[1759274914341,0.1208,4141.4,4141.3,32.767]
[1759274917161,0.1208,4141.4,4141.3,25.634236]
[1759274917162,0.576,4141.4,4141.3,25.634236]
[1759274917470,0.8016,4141.4,4141.3,14.170817]
[1759274918149,0.8026,4141.4,4141.3,14.170817]
[1759274918476,0.8026,4141.4,4141.3,2.767]
[1759274918855,0.8026,4141.4,4141.3,19.851966]
[1759274919078,0.8026,4141.4,4141.3,19.57637]
[1759274919259,0.8026,4141.4,4141.3,2.767]
[1759274919696,0.8026,4141.4,4141.3,19.145522]
[1759274919992,0.8026,4141.4,4141.3,18.594539]
[1759274920287,0.8026,4141.4,4141.3,2.767]
[1759274920689,0.577,4141.4,4141.3,2.767]
[1759274920871,0.577,4141.4,4141.3,13.59513]
[1759274921049,0.577,4141.4,4141.3,15.474378]
[1759274921452,0.577,4141.4,4141.3,19.366121]
[1759274922057,0.577,4141.4,4141.3,18.95004]
[1759274922385,0.577,4141.4,4141.3,2.767]
[1759274922585,0.792,4141.3,4140.9,0.1208]
[1759274922878,0.792,4141.3,4141.0,5.276]
[1759274923092,1.4721,4141.2,4141.1,2.765]
[1759274923553,1.5929,4141.2,4141.1,2.765]
[1759274930502,0.9128,4141.2,4141.1,2.78914817]
[1759274930702,0.9128,4141.2,4141.1,2.765]
[1759274932688,1.5929,4141.2,4141.1,2.765]
[1759274933407,0.9128,4141.2,4141.1,2.765]
[1759274933610,0.9128,4141.2,4141.1,2.9976]
[1759274934811,0.1208,4141.2,4141.1,3.4673]
[1759274934985,0.1208,4141.2,4141.1,2.9976]
[1759274935692,0.1208,4141.2,4141.1,3.02174817]
[1759274937295,0.1218,4141.2,4141.1,3.02174817]
[1759274937813,0.1218,4141.2,4141.1,2.9976]
[1759274938313,0.1218,4141.2,4141.1,13.151793]
[1759274938497,0.1218,4141.2,4141.1,12.069896]
[1759274938699,0.1218,4141.2,4141.1,11.837296]
[1759274939022,0.5722,4141.2,4141.1,2.765]
[1759274939221,0.1218,4141.2,4141.1,5.21743]
[1759274939421,0.9138,4141.2,4140.8,0.86600868]
[1759274939620,0.9138,4141.2,4140.5,1.30126342]
[1759274939621,2.41487563,4141.0,4140.9,5.274]
[1759274939805,2.41487563,4141.0,4139.8,1.09860868]
[1759274939806,0.792,4140.6,4139.8,1.09860868]
[1759274940005,2.41526572,4140.4,4140.2,2.511]
[1759274940209,3.09538391,4140.3,4140.2,5.274]
[1759274940540,2.41534225,4140.2,4139.8,0.86600868]
[1759274940843,2.86574225,4140.2,4140.1,5.276]
[1759274940984,3.09544225,4140.2,4140.1,0.002]
[1759274941188,3.09544225,4140.2,4140.1,5.276]
[1759274941793,2.86574225,4140.2,4140.1,5.276]
[1759274941994,2.41534225,4140.2,4140.1,5.276]
[1759274943111,2.41534225,4140.2,4140.1,0.002]
[1759274943312,2.41534225,4140.2,4140.1,5.276]
[1759274943922,2.41534225,4140.2,4140.1,0.002]
[1759274944103,2.41534225,4140.2,4140.1,5.276]
[1759274944892,2.41534225,4140.2,4140.1,0.002]
[1759274945113,2.41534225,4140.2,4140.1,5.276]
[1759274946990,3.88744225,4140.2,4140.1,5.276]
[1759274947188,3.88744225,4140.2,4140.1,2.513]
[1759274947427,4.61270972,4140.2,4140.1,5.276]
[1759274949410,4.61270972,4140.2,4140.1,2.513]
[1759274949616,4.73350972,4140.2,4140.1,5.276]
[1759274950943,4.73350972,4140.2,4140.1,0.002]
[1759274951148,4.73350972,4140.2,4140.1,5.276]
[1759274952318,4.50380972,4140.2,4140.1,5.276]
[1759274952551,4.73350972,4140.2,4140.1,5.276]
[1759274955650,4.05340972,4140.2,4140.1,5.276]
[1759274957139,4.05440972,4140.2,4140.1,5.276]
[1759274959421,4.05440972,4140.2,4140.1,5.5048]
[1759274959615,4.05440972,4140.2,4140.1,5.9581]
[1759274959821,4.05440972,4140.2,4140.1,5.5048]
[1759274960024,4.05440972,4140.2,4140.1,5.276]
[1759274962839,4.05440972,4140.2,4140.1,5.9581]
[1759274963144,4.05440972,4140.2,4140.1,5.5048]
[1759274964628,4.05440972,4140.2,4140.1,0.002]
[1759274964831,4.61770972,4140.2,4140.1,0.002]
[1759274965048,3.20757563,4139.8,4139.7,0.002]
[1759274965515,3.89167563,4139.8,4139.7,0.002]
[1759274965719,4.61707989,4139.8,4139.7,0.002]
[1759274966132,4.61707989,4139.8,4139.7,2.764]
[1759274966947,3.89167563,4139.8,4139.7,2.764]
[1759274969349,3.89167563,4139.8,4139.6,0.002]
[1759274969350,3.20763398,4139.7,4139.6,0.002]
[1759274969852,3.89173398,4139.7,4139.6,0.002]
[1759274970419,3.89173398,4139.7,4139.6,2.764]
[1759274970849,3.89173398,4139.7,4139.6,0.002]
[1759274971063,3.89173398,4139.7,4139.6,2.764]
[1759274974855,4.01253398,4139.7,4139.6,2.764]
[1759274982065,3.78283398,4139.7,4139.6,2.764]
[1759274983985,4.01253398,4139.7,4139.6,2.764]
[1759274984884,3.32843398,4139.7,4139.6,0.002]
[1759274985086,3.99293398,4139.7,4139.6,2.764]
[1759274988386,3.32843398,4139.7,4139.6,2.764]
[1759274989081,3.32843398,4139.7,4139.6,3.0066]
[1759274993990,3.32843398,4139.7,4139.6,2.764]
[1759274994195,3.32843398,4139.7,4139.6,3.0066]
[1759274994981,3.32843398,4139.7,4139.6,2.764]
[1759274996182,3.32943398,4139.7,4139.6,2.764]
[1759274997209,3.32943398,4139.7,4139.6,3.4482]
[1759274997410,3.32943398,4139.7,4139.6,3.0066]
[1759275000020,3.32943398,4139.7,4139.6,2.764]
[1759275000716,2.53743398,4139.7,4139.6,3.4482]
[1759275000918,3.32943398,4139.7,4139.6,5.275]
[1759275001140,3.32943398,4139.7,4139.6,0.002]
[1759275001316,3.99393398,4139.7,4139.6,4.95]
[1759275001710,3.32943398,4139.7,4139.6,4.95]
[1759275007912,3.32943398,4139.7,4139.6,2.762]
[1759275013647,3.32943398,4139.7,4139.6,0.002]
[1759275013939,3.32943398,4139.7,4139.6,2.762]
[1759275018645,3.32943398,4139.7,4139.1,0.002]
[1759275018646,3.20769233,4139.6,4139.1,0.002]
[1759275018819,3.20786741,4139.3,4139.2,2.759]
[1759275019019,6.29236741,4139.3,4139.2,2.759]
[1759275019730,7.01794711,4139.3,4139.2,2.759]
[1759275019946,6.33344711,4139.3,4139.2,2.759]
[1759275020146,6.33344711,4139.3,4139.2,3.4388]
[1759275022081,6.33344711,4139.3,4139.2,2.759]
[1759275022373,2.41586741,4139.3,4139.2,3.4388]
[1759275023063,3.20786741,4139.3,4139.2,3.4388]
[1759275024543,0.001,4139.7,4139.2,3.4388]
[1759275024864,2.41583143,4139.4,4139.3,0.6798]
[1759275025066,0.792,4139.4,4139.3,3.4388]
[1759275027562,1.51736742,4139.4,4139.3,3.4388]
[1759275028774,4.05397647,4139.4,4139.3,3.4388]
[1759275031873,4.05497647,4139.4,4139.3,3.4388]
[1759275032373,3.20792578,4139.2,4139.1,0.002]
[1759275032671,3.20792578,4139.2,4139.1,5.273]
[1759275033059,3.93335986,4139.2,4139.1,5.273]
[1759275035888,3.93335986,4139.2,4139.1,5.5184]
[1759275040059,3.93335986,4139.2,4139.1,5.273]
[1759275045172,3.93335986,4139.2,4139.1,0.002]
[1759275045374,3.93335986,4139.2,4139.1,5.272]
[1759275046072,3.93335986,4139.2,4139.1,5.5031]
[1759275049874,3.93335986,4139.2,4139.1,5.9379]
[1759275050687,6.33335986,4139.2,4139.1,5.9379]
[1759275051793,6.33335986,4139.2,4139.1,0.002]
[1759275051995,7.01455986,4139.2,4139.1,5.272]
[1759275052923,7.01455986,4139.2,4139.1,0.002]
[1759275053130,4.61455986,4139.2,4139.1,4.856]
[1759275053696,4.61455986,4139.2,4139.1,0.002]
[1759275053922,4.61455986,4139.2,4139.1,2.76]
[1759275054230,5.60798415,4139.1,4138.7,0.002]
[1759275054415,5.72878415,4139.1,4138.7,0.002]
[1759275054619,6.40998415,4139.1,4138.7,0.002]
[1759275054929,7.13557789,4139.1,4138.7,0.002]
[1759275055438,7.13557789,4139.1,4139.0,2.759]
[1759275055733,3.20815927,4138.8,4138.7,0.002]
[1759275055932,3.32895927,4138.8,4138.7,0.002]
[1759275056103,4.01015927,4138.8,4138.7,0.002]
[1759275056702,4.10690767,4138.8,4138.7,0.002]
[1759275056902,4.10690767,4138.8,4138.7,2.76]
[1759275057622,4.10690767,4138.8,4138.7,0.002]
[1759275057827,4.10690767,4138.8,4138.7,0.681]
[1759275058456,4.10690767,4138.8,4138.7,2.76]
[1759275064246,3.65540767,4138.8,4138.7,2.76]
[1759275064445,3.42570767,4138.8,4138.7,2.76]
[1759275065072,3.42570767,4138.8,4138.7,2.759]
[1759275068442,2.63370767,4138.8,4138.7,3.4249]
[1759275068877,3.42570767,4138.8,4138.7,3.4249]
[1759275070185,0.001,4139.3,4138.7,15.371945]
[1759275070389,0.001,4139.3,4138.7,3.35319]
[1759275070590,2.41596554,4139.2,4138.8,5.9359]
[1759275070787,2.41596554,4139.2,4138.9,5.9359]
[1759275070788,2.41608545,4139.0,4138.9,5.9359]
[1759275071084,2.41093758,4139.0,4138.9,6.589309]
[1759275071673,2.41093758,4139.0,4138.9,1.319309]
[1759275071869,2.41093758,4139.0,4138.9,0.6659]
[1759275072192,3.20293758,4139.0,4138.9,5.9359]
[1759275073095,0.792,4139.0,4138.9,5.9359]
[1759275078471,0.001,4139.3,4138.9,5.9359]
[1759275078671,0.001,4139.3,4139.0,0.6975]
[1759275078881,0.001,4139.3,4139.1,3.59535999]
[1759275079185,0.001,4139.3,4139.1,4.29285999]
[1759275079393,0.001,4139.3,4139.2,0.6975]
[1759275080122,0.1218,4139.3,4139.2,0.6975]
[1759275082816,0.001,4139.4,4139.2,29.73122703]
[1759275083014,0.001,4139.4,4139.3,36.29965341]
[1759275083585,0.001,4139.4,4139.3,38.69965341]
[1759275083985,0.001,4139.8,4139.4,2.4]
[1759275084193,0.001,4140.3,4139.6,2.4]
[1759275084494,0.001,4140.3,4139.5,32.756]
[1759275084495,0.001,4140.3,4139.9,2.41551728]
[1759275084794,0.001,4140.3,4140.1,2.4]
[1759275085002,0.001,4140.3,4140.1,10.559169]
[1759275085197,0.001,4140.3,4140.1,0.6975]
[1759275085387,0.001,4140.3,4140.1,8.3655]
[1759275085587,0.001,4140.3,4140.1,9.21171797]
[1759275085810,0.001,4140.3,4140.1,8.51421797]
[1759275086009,0.001,4140.3,4140.1,8.75291797]
[1759275086916,0.001,4140.3,4140.1,9.21171797]
[1759275087321,0.001,4140.3,4140.1,8.75291797]
[1759275087642,0.001,4140.3,4140.1,9.21171797]
[1759275089438,0.001,4140.3,4140.1,41.62711856]
[1759275089743,0.001,4140.3,4140.1,33.99008556]
[1759275090523,0.001,4140.3,4140.1,41.62711856]
[1759275091230,0.001,4140.3,4140.1,33.59431656]
[1759275091401,0.001,4140.3,4140.1,33.58428356]
[1759275092630,0.001,4140.3,4140.1,36.43592856]
[1759275093621,0.001,4140.3,4140.1,39.04489756]
[1759275094531,0.001,4140.3,4140.1,39.98135856]
[1759275094721,0.001,4140.3,4140.1,36.80403256]
[1759275094917,0.001,4140.3,4140.1,33.86403256]
[1759275095124,0.001,4140.3,4140.1,31.08030056]
[1759275095433,0.001,4140.3,4140.1,28.21901356]
[1759275095615,0.001,4140.3,4140.1,15.35777197]
[1759275095932,0.001,4140.3,4140.1,17.31437256]
[1759275096507,0.001,4140.3,4140.1,17.77317256]
[1759275096708,0.001,4140.3,4140.1,23.17812256]
[1759275097039,0.001,4140.3,4140.1,22.55912256]
[1759275097510,0.001,4140.3,4140.1,21.16594756]
[1759275097704,0.001,4140.3,4140.1,5.75721797]
[1759275097912,0.1218,4140.2,4140.1,3.24621797]
[1759275098338,0.1218,4140.2,4140.1,8.51221797]
[1759275102246,0.1218,4140.2,4140.1,3.24621797]
[1759275102448,0.1218,4140.2,4140.1,7.666]
[1759275103659,0.1218,4140.2,4140.1,2.4]
[1759275103951,0.1218,4140.2,4140.1,7.666]
[1759275104337,0.1218,4140.2,4140.1,2.4]
[1759275104537,0.1218,4140.2,4140.1,7.666]
[1759275104859,0.1218,4140.2,4140.1,2.4]
[1759275105054,0.1218,4140.2,4140.1,7.666]
[1759275105280,0.1218,4140.2,4140.1,2.4]
[1759275105554,0.1218,4140.2,4140.1,7.666]
[1759275106058,0.792,4140.1,4139.3,0.665486]
[1759275106257,0.792,4140.1,4139.6,5.266]
[1759275106258,0.792,4139.9,4139.6,5.266]
[1759275106653,0.1208,4139.7,4139.6,5.266]
[1759275107657,0.1208,4139.7,4139.1,0.86800868]
[1759275107961,0.4343,4139.8,4139.6,2.511]
[1759275108167,1.456,4139.8,4139.7,2.755]
[1759275108459,0.001,4140.2,4139.7,2.755]
[1759275108460,0.001,4140.2,4139.8,11.208532]
[1759275108662,0.001,4140.2,4139.9,2.755]
[1759275108867,0.001,4140.2,4140.0,32.41542586]
[1759275109035,0.001,4140.2,4140.1,5.15330543]
[1759275109232,0.001,4140.2,4140.1,3.4242]
[1759275111074,0.001,4140.6,4140.3,2.41524398]
[1759275111272,0.4343,4142.2,4140.4,33.65216093]
[1759275111571,2.41442592,4141.8,4140.7,3.06525358]
[1759275111868,0.664,4141.6,4140.8,14.47771892]
[1759275112072,0.664,4141.6,4140.9,7.344077]
[1759275112280,0.664,4141.6,4141.0,2.763]
[1759275112444,0.664,4142.0,4141.0,33.03742138]
[1759275112645,2.4,4143.2,4141.0,35.69077563]
[1759275112646,0.664,4142.3,4141.0,35.69077563]
[1759275112848,0.792,4142.2,4141.0,38.08808106]
[1759275113050,0.664,4142.3,4141.0,38.95408974]
[1759275113271,0.664,4142.3,4141.0,28.07070874]
[1759275113578,0.792,4142.2,4141.0,38.24338106]
[1759275113945,0.792,4142.2,4141.0,40.64338106]
[1759275115372,0.792,4142.2,4141.0,10.64338106]
[1759275115758,0.792,4142.2,4141.0,40.64338106]
[1759275116472,0.664,4142.0,4141.0,41.50948219]
[1759275117473,0.664,4142.0,4141.0,11.50948219]
[1759275117870,0.664,4142.0,4141.0,41.50948219]
[1759275118464,0.1208,4141.6,4141.0,40.76418106]
[1759275119472,0.1208,4141.6,4141.0,10.76418106]
[1759275119677,0.1208,4141.6,4141.0,40.76418106]
[1759275121575,0.1208,4141.6,4141.0,10.76418106]
[1759275121872,0.1208,4141.6,4141.0,40.76418106]
[1759275122752,0.1208,4141.6,4141.0,10.76418106]
[1759275123081,0.1208,4141.6,4141.0,40.76418106]
[1759275123655,0.1208,4141.6,4141.0,36.60751806]
[1759275124876,0.1208,4141.6,4141.0,40.93746206]
[1759275125172,0.1208,4141.6,4141.0,40.34927106]
[1759275125673,0.4343,4141.5,4141.0,31.15130806]
[1759275125867,0.4343,4141.5,4141.0,34.65392006]
[1759275126180,0.3515,4141.6,4141.0,34.70371606]
[1759275126874,0.3515,4141.6,4141.0,34.20836206]
[1759275127078,0.3515,4141.6,4141.0,34.64036206]
[1759275127770,0.3515,4141.6,4141.0,13.27018106]
[1759275128075,0.3515,4141.6,4141.0,12.83818106]
[1759275128275,0.3515,4141.6,4141.0,37.50272506]
[1759275128581,0.3515,4141.6,4141.0,36.25171606]
[1759275128793,0.3515,4141.6,4141.0,42.16247506]
[1759275129085,0.3515,4141.6,4141.0,41.52173106]
[1759275129577,0.1218,4141.6,4141.0,41.52173106]
[1759275129781,0.1218,4141.6,4141.0,42.31987606]
[1759275129981,0.1218,4141.6,4141.0,40.64316506]
[1759275130856,0.1218,4141.6,4141.0,41.88167206]
[1759275131861,0.1218,4141.6,4141.0,42.18259706]
[1759275132783,0.1218,4141.6,4141.0,43.04869819]
[1759275133096,0.1218,4141.6,4141.0,44.13628219]
[1759275133502,0.1218,4141.6,4141.0,43.27018106]
[1759275133701,0.1218,4141.6,4141.5,2.41458408]
[1759275133914,0.1218,4141.6,4141.5,33.18331692]
[1759275134077,0.1218,4141.6,4141.5,33.01735408]
[1759275134278,0.1218,4141.6,4141.5,33.27748356]
[1759275134494,0.4445,4142.0,4141.6,2.41452165]
[1759275134699,0.2263,4142.0,4141.7,14.30956867]
[1759275135009,0.2263,4142.0,4141.8,13.67174309]
[1759275135188,0.2263,4142.0,4141.9,12.8197325]
[1759275135383,0.2263,4142.0,4141.9,12.795589]
[1759275135598,0.3471,4142.0,4141.9,12.795589]
[1759275136105,0.3471,4142.0,4141.9,13.253021]
[1759275136306,0.3471,4142.0,4141.9,15.6673719]
[1759275136611,0.1208,4142.0,4141.9,15.6673719]
[1759275136989,0.1208,4142.0,4141.9,16.6210719]
[1759275137190,0.1208,4142.0,4141.9,16.3895349]
[1759275138111,0.1208,4142.0,4141.9,18.4637179]
[1759275138409,0.792,4142.9,4142.2,2.41411976]
[1759275138596,0.1208,4142.3,4142.2,2.41411871]
[1759275138924,0.1208,4142.3,4142.2,35.16911871]
[1759275139499,0.1208,4142.3,4142.2,35.81891871]
[1759275139882,0.1208,4142.3,4142.2,28.671457]
[1759275140205,0.8191,4142.3,4142.2,5.265]
[1759275140404,0.8191,4142.3,4142.2,5.9148]
[1759275141124,0.1208,4142.3,4142.2,5.9148]
[1759275141295,0.8191,4142.3,4142.2,5.9148]
[1759275141692,0.8191,4142.3,4142.2,5.265]
[1759275143023,0.8191,4142.3,4142.2,5.9148]
[1759275143221,0.8191,4142.3,4142.2,5.265]
[1759275143518,0.8191,4142.3,4142.2,5.9148]
[1759275144517,0.8191,4142.3,4142.2,5.265]
[1759275144902,0.792,4142.2,4142.1,0.6498]
[1759275145224,1.4903,4142.2,4142.1,5.9138]
[1759275145720,1.4903,4142.2,4142.1,5.264]
[1759275146021,1.4903,4142.2,4142.0,0.6498]
[1759275146223,0.792,4142.2,4142.1,5.264]
[1759275146926,1.4903,4142.2,4142.1,5.264]
[1759275148308,1.4903,4142.2,4142.0,0.6498]
[1759275148608,1.0217,4142.2,4142.1,5.264]
[1759275149008,0.792,4142.2,4142.1,5.9138]
[1759275151233,0.792,4142.2,4142.1,0.6498]
[1759275151539,0.792,4142.2,4142.1,5.9138]
[1759275151840,0.792,4142.2,4142.1,0.6498]
[1759275152028,0.792,4142.2,4142.1,5.9138]
[1759275152424,0.792,4142.2,4142.1,0.6498]
[1759275152639,0.792,4142.2,4142.1,5.9138]
[1759275153027,0.792,4142.2,4142.1,5.264]
[1759275153830,1.4903,4142.2,4142.1,5.264]
[1759275155015,3.20617604,4142.2,4142.1,5.264]
[1759275155213,3.20617604,4142.2,4141.9,0.6498]
[1759275155412,1.4903,4142.1,4142.0,2.51]
[1759275155613,3.90453432,4142.1,4142.0,5.264]
[1759275155818,4.02533432,4142.1,4142.0,5.264]
[1759275158215,0.792,4141.8,4141.5,0.65075869]
[1759275158413,0.792,4141.8,4141.6,5.264]
[1759275158614,0.1208,4141.7,4141.6,5.264]
[1759275159943,0.1208,4141.7,4141.5,0.65075869]
[1759275160146,0.1208,4141.7,4141.6,5.264]
[1759275160336,3.20658408,4141.5,4141.4,0.65075869]
[1759275160644,3.90488408,4141.5,4141.4,5.264]
[1759275163357,3.20684137,4141.1,4140.6,0.90075869]
[1759275163563,2.41488556,4141.0,4140.7,5.265]
[1759275163742,0.1208,4140.8,4140.7,5.513]
[1759275164248,0.1208,4140.8,4140.7,5.515]
[1759275164449,2.53579227,4140.8,4140.7,5.515]
[1759275164757,2.53579227,4140.8,4140.7,5.267]
[1759275166429,2.53579227,4140.8,4140.7,5.268]
[1759275167031,3.75989227,4140.8,4140.7,2.513]
[1759275167231,3.98959227,4140.8,4140.7,0.002]
[1759275167634,3.98959227,4140.8,4140.7,2.757]
[1759275168063,4.64235096,4140.8,4140.7,0.002]
[1759275168365,5.60705059,4140.7,4140.6,0.002]
[1759275168968,6.26885059,4140.7,4140.6,0.002]
[1759275169339,6.26885059,4140.7,4140.1,1e-08]
[1759275169340,2.41534225,4140.2,4140.1,1e-08]
[1759275169544,5.60734225,4140.2,4140.1,2.15200001]
[1759275169765,3.20751728,4139.9,4139.8,0.002]
[1759275170300,3.86931728,4139.9,4139.8,0.002]
[1759275170982,3.86931728,4139.9,4139.8,2.757]
[1759275171388,4.59475136,4139.9,4139.8,2.757]
[1759275176060,4.59475136,4139.9,4139.8,0.002]
[1759275176357,4.59475136,4139.9,4139.2,0.002]
[1759275176358,3.20763398,4139.7,4139.2,0.002]
[1759275176563,3.20763398,4139.7,4139.2,2.514]
[1759275176874,3.86943398,4139.7,4139.2,2.514]
[1759275177089,6.26943398,4139.7,4139.2,2.514]
[1759275177390,6.26943398,4139.7,4139.2,0.002]
[1759275177584,3.20786741,4139.3,4139.2,0.002]
[1759275178116,3.86966741,4139.3,4139.2,0.002]
[1759275178409,4.59519447,4139.3,4139.2,0.002]
[1759275179020,3.93339447,4139.3,4139.2,2.529]
[1759275179225,4.59519447,4139.3,4139.2,0.002]
[1759275179405,4.71599447,4139.3,4139.2,2.758]